Cogmind - Beta 14 @@@ ROGUE MODE // 2024.11.16 @ 15:22:26 Player: BEEEEES Result: Self-destructed Performance ------------- Evolutions (1) 500 Regions Visited (2) 400 Robots Destroyed (27) 135 Value Destroyed (786) 786 Prototype IDs (1) 20 Alien Tech Used (0) 0 Bonus (0) 0 TOTAL SCORE: 1841 Bonus ------- None Cogmind --------- Core Integrity 231/400 Matter 271/300 Energy 265/265 System Corruption 3% Temperature Cool (15) Movement Rolling (80) Location -9/Materials Parts ------- > --- POWER (1) -------- Improved Ion Engine > --- PROPULSION (3) --- Wheel Wheel Wheel > --- UTILITY (3) ------ Medium Storage Unit Seismic Detector ECM Suite > --- WEAPON (2) ------- Enhanced Autogun Enhanced Autogun > --- INVENTORY (10) --- Ion Engine Ion Engine Wheel Wheel Sensor Array Hardened Light Armor Plating Shotgun Enhanced Autogun Enhanced Autogun Mini Grenade Launcher Peak State ------------ > --- POWER ------------ Ion Engine > --- PROPULSION ------- Wheel Wheel Wheel > --- UTILITY ---------- Small Storage Unit Improved Targeting Computer ECM Suite > --- WEAPON ----------- Enhanced Autogun Enhanced Autogun > --- INVENTORY -------- Ion Engine Wheel Sensor Array ECM Suite Light Armor Plating Enhanced Autogun Enhanced Autogun Mini Grenade Launcher [Rating: 17] Favorites ----------- Power Ion Engine Engine Ion Engine Propulsion Wheel Wheel Wheel Utility ECM Suite Device ECM Suite Storage Medium Storage Unit Processor Improved Targeting Computer Weapon Enhanced Autogun Energy Gun Particle Gun Ballistic Gun Enhanced Autogun Build | -11 -10 -9 ------- Run | Yrd Mat Mat Slots Evolved 2 | . . 2 Power . | . . . Propulsion 1 | . . 1 Utility 1 | . . 1 Weapon . | . . . Parts Attached 33 | 6 5 22 Power 4 | 1 1 2 Engine 4 | 1 1 2 Core . | . . . Reactor . | . . . Propulsion 12 | 2 1 9 Treads . | . . . Leg . | . . . Wheel 12 | 2 1 9 Hover . | . . . Flight . | . . . Utility 8 | 1 2 5 Device 5 | 1 1 3 Storage 2 | . 1 1 Processor 1 | . . 1 Hackware . | . . . Protection . | . . . Artifact . | . . . Weapon 9 | 2 1 6 Energy Gun 1 | . 1 . Energy Cannon . | . . . Ballistic Gun 8 | 2 . 6 Ballistic Cannon . | . . . Launcher . | . . . Special Weapon . | . . . Impact Weapon . | . . . Slashing Weapon . | . . . Piercing Weapon . | . . . Special Melee Weapon . | . . . Unidentified Prototypes 1 | . . 1 Parts Lost 1 | . . 1 Power . | . . . Propulsion . | . . . Utility 1 | . . 1 Weapon . | . . . Highest Loss Streak 1 | . . 1 To Critical Strikes . | . . . Average Slot Usage (%) 97 | . 93 99 Engine 11 | . 14 11 Wheel 31 | . 27 33 Device 13 | . 14 12 Storage 10 | . 8 11 Processor 6 | . . 8 Energy Gun 1 | . 3 . Ballistic Gun 22 | . 24 21 Peak Build Rating 17 | 6 8 17 Average Rating 12 | 4 6 16 On Entrance 4 | . 6 8 Naked Turns . | . . . Heaviest Build 26 | 7 17 26 Greatest Support 30 | 20 20 30 Greatest Overweight (x) 1 | . . 1 Average Overweight (x) . | . . . Largest Inventory Capacity 10 | 5 8 10 Average Capacity 8 | 5 6 9 Most Carried 10 | 5 8 10 Average Carried 7 | 2 5 9 Final Capacity 10 | 5 8 10 Final Carried 10 | 5 8 10 Class Distribution -------------------- 100% | Mutant Dominant Class ---------------- Mutant | -10/Materials Mutant | -9/Materials Resources | -11 -10 -9 ----------- Run | Yrd Mat Mat Matter Collected 970 | 268 90 612 Remotely . | . . . Salvage Created 870 | 39 139 692 Parts 60 | 3 11 46 Haulers Intercepted . | . . . Recyclers Shooed 1 | . . 1 Parts Field Recycled . | . . . Retrieved Matter . | . . . Parts Self-Destructed . | . . . Prevented . | . . . Kills | -11 -10 -9 ------- Run | Yrd Mat Mat Combat Hostiles Destroyed 25 | 1 5 19 Guns 25 | 1 5 19 Classes Destroyed 7 | 1 2 4 Operator 1 | . . 1 Watcher 1 | . 1 . Swarmer 7 | . 3 4 Grunt 15 | 1 2 12 Brawler 1 | . . 1 Duelist 1 | . . 1 Sentry 1 | . . 1 Best Kill Streak 4 | 1 3 4 Combat Bots Only 4 | 1 3 4 Max Kills in Single Turn 1 | 1 1 1 Gunslinging . | . . . Exploded . | . . . Melee . | . . . Uniques/NPCs Destroyed . | . . . Combat | -11 -10 -9 -------- Run | Yrd Mat Mat Hostile Shots Fired 119 | 2 23 94 Missed 44 | 1 8 35 Damage Taken 1010 | 12 156 842 Core 210 | 12 29 169 Absorbed by Shields . | . . . Regen/Repaired (Parts) 34 | . 34 . Core Remaining (%) 89 | 95 83 . Volleys Fired 69 | 2 18 49 Largest 2 | 2 2 2 Hottest 85 | 40 85 50 Shots Fired 138 | 4 36 98 Gun 138 | 4 36 98 Cannon . | . . . Launcher . | . . . Special . | . . . Kinetic 136 | 4 34 98 Thermal 2 | . 2 . Explosive . | . . . Electromagnetic . | . . . Robot Hit Streak 13 | 1 12 13 Robot Miss Streak 2 | 1 2 2 Penetration Max . | . . . Secondary Targets 2 | . 1 1 Max Gunslinging Chain 1 | . 1 1 Shots Hit Robots 95 | 2 23 70 Core Hits 41 | 2 10 29 Critical Kills . | . . . Critical Parts Destroyed 1 | . . 1 Critical Strikes 2 | . 1 1 Burn 1 | . 1 . Destroy 1 | . . 1 Melee Attacks . | . . . Impact . | . . . Slashing . | . . . Piercing . | . . . Sneak Attacks . | . . . Combat Hostiles . | . . . Follow-up Attacks . | . . . Damage Inflicted 1548 | 25 288 1235 Guns 1496 | 25 288 1183 Cannons . | . . . Explosions . | . . . Melee . | . . . Ramming 52 | . . 52 Kinetic 1482 | 25 274 1183 Thermal 14 | . 14 . Explosive . | . . . Electromagnetic . | . . . Impact . | . . . Slashing . | . . . Piercing . | . . . Highest Corruption 3 | . 2 3 Average Corruption 1 | . 1 1 Corruption Purged . | . . . Corruption Blocked . | . . . Effects 11 | . . 11 Message Errors 4 | . . 4 Matter Fused 1 | . . 1 Energy Discharges 1 | . . 1 Data Loss (minor) 2 | . . 2 Data Loss (major) 1 | . . 1 Alerts 2 | . . 2 Overload Shots . | . . . Overflow Damage . | . . . Projectiles . | . . . Explosions . | . . . Melee . | . . . Knockbacks 1 | . . 1 Impact 1 | . . 1 Kinetic . | . . . Secondary . | . . . Self-Inflicted Damage 24 | . . 24 Shots . | . . . Rammed 8 | . . 8 Targets Rammed 8 | . . 8 Kicked . | . . . Crushed . | . . . Highest Temperature 117 | 6 . 117 Average Temperature 24 | 6 . 25 Received Heat Transfer 351 | 6 54 291 Siege Activations . | . . . Robots Corrupted . | . . . Combat Hostiles . | . . . Parts Fried . | . . . Impact Corruptions . | . . . Robots Melted . | . . . Combat Hostiles . | . . . Parts Melted 2 | . 2 . Heat Transferred 111 | . 111 . Parts Sabotaged . | . . . Parts Stolen . | . . . Parts Stripped . | . . . Power Chain Reactions . | . . . Alert | -11 -10 -9 ------- Run | Yrd Mat Mat Peak Influence 318 | 20 89 318 Initial 37 | . 13 37 Average 89 | 2 57 114 Maximum Alert Level 1 | . . 1 Low Security (%) 92 | 100 100 88 Level 1 7 | . . 11 Level 2 . | . . . Level 3 . | . . . Level 4 . | . . . Level 5 . | . . . High Security . | . . . Max Security . | . . . Squads Dispatched 4 | . . 4 Investigation 1 | . . 1 Extermination . | . . . Reinforcement 3 | . . 3 Assault . | . . . Garrison . | . . . Intercept . | . . . Searches Triggered . | . . . Construction Impeded . | . . . Haulers Reinforced . | . . . Active Scanning Responses . | . . . Cargo Convoy Interrupts . | . . . Stealth | -11 -10 -9 --------- Run | Yrd Mat Mat Distress Signals 4 | . . 4 Communications Jammed . | . . . Distress Signals . | . . . Times Spotted 64 | 1 6 57 Peak Tracking Total 9 | 1 3 9 Tactical Retreats 9 | . . 9 Traps | -11 -10 -9 ------- Run | Yrd Mat Mat Traps Triggered 2 | . 1 1 Indirectly . | . . . Trap Hack Attempts . | . . . Triggered . | . . . Disarmed . | . . . Reprogrammed . | . . . Reused . | . . . Traps Extracted . | . . . Installed . | . . . Triggered . | . . . Machines | -11 -10 -9 ---------- Run | Yrd Mat Mat Machines Disabled 2 | . . 2 Max in Single Turn 1 | . . 1 Machines Repaired . | . . . Machines Dismantled . | . . . Machines Sabotaged . | . . . Overloaded Fab Kills . | . . . Hacking | -11 -10 -9 --------- Run | Yrd Mat Mat Machines Accessed 9 | . 6 3 Terminals 7 | . 5 2 Fabricators . | . . . Repair Stations 1 | . 1 . Recycling Units . | . . . Scanalyzers 1 | . . 1 Garrison Access . | . . . Total Hacks 18 | . 12 6 Successful 11 | . 6 5 Failed 7 | . 6 1 Catastrophic . | . . . Database Lockouts . | . . . Manual 6 | . 5 1 Terminals 11 | . 8 3 Fabricators . | . . . Repair Stations 4 | . 4 . Recycling Units . | . . . Scanalyzers 3 | . . 3 Garrison Access . | . . . Terminal Hacks 4 | . 2 2 Robot Analysis 1 | . 1 . Alert Level 1 | . . 1 Unreport Threat 1 | . . 1 Locate Traps 1 | . 1 . Fabricator Hacks . | . . . Repair Station Hacks 2 | . 2 . Scan Component 1 | . 1 . Repair 1 | . 1 . Recycling Unit Hacks . | . . . Scanalyzer 2 | . . 2 Insert Component 1 | . . 1 Analyze 1 | . . 1 Garrison Access Hacks . | . . . Unauthorized Hacks 3 | . 2 1 Terminals 3 | . 2 1 Track 1 | . 1 . Botnet 2 | . 1 1 Fabricators . | . . . Repair Stations . | . . . Recycling Units . | . . . Scanalyzers . | . . . Garrison Access . | . . . Data Cores Recovered . | . . . Used . | . . . Hacking Detections 6 | . 5 1 Full Trace Events 2 | . 1 1 Feedback Events 1 | . 1 . Corruption 1 | . 1 . Feedback Blocked . | . . . Robot Schematics Acquired . | . . . Robots Built . | . . . Authchips . | . . . Time . | . . . Total Robot Build Rating . | . . . Part Schematics Acquired 1 | . . 1 Parts Built . | . . . Authchips . | . . . Time . | . . . Total Part Build Rating . | . . . Parts Repaired 1 | . 1 . Time 26 | . 26 . Parts Recycled . | . . . Recycled Matter . | . . . Retrieved Matter . | . . . Retrieved Components . | . . . Parts Scanalyzed 1 | . . 1 Part Schematics Acquired 1 | . . 1 Parts Damaged . | . . . Bothacking | -11 -10 -9 ------------ Run | Yrd Mat Mat Used RIF Installer . | . . . Robots Hacked . | . . . Non-combat . | . . . Combat . | . . . Robot Hacks Applied . | . . . Relay Couplers Released . | . . . Fabnet Peak Effective % . | . . . Robots Rewired . | . . . Allies Hacked . | . . . Hacks Repelled . | . . . Allies | -11 -10 -9 -------- Run | Yrd Mat Mat Total Allies . | . . . Largest Group . | . . . Highest-Rated Group . | . . . Highest-Rated Ally . | . . . Total Orders . | . . . Ally Attacks . | . . . Total Damage . | . . . Kills . | . . . Allies Corrupted . | . . . Allies Melted . | . . . Intel | -11 -10 -9 ------- Run | Yrd Mat Mat Robot Analysis Total 1 | . 1 . Derelict Logs Recovered . | . . . Drone Launches . | . . . Drone Recoveries . | . . . Exploration | -11 -10 -9 ------------- Run | Yrd Mat Mat Turns Passed 1972 | 132 606 1234 Spaces Moved 1963 | 148 626 1189 Core 20 | 20 . . Treads . | . . . Legs . | . . . Wheels 1943 | 128 626 1189 Hover . | . . . Flight . | . . . Fastest Speed 50 | 50 80 80 Average Speed 80 | 75 80 80 Slowest Speed 95 | 80 80 95 Overloaded Moves . | . . . Propulsion Burnouts . | . . . Robots Hopped . | . . . Cave-ins Triggered . | . . . Exploration Rate (%) 42 | 6 71 49 Regions Visited 2 Branch Regions . Pre-discovered Areas . | . . . Known Exits Taken . | . . . Unknown Exits Taken 2 | 1 1 . Scrap Searched . | . . . Spaces Dug . | . . . Terrain Destroyed . | . . . Melee . | . . . Projectile . | . . . AOE . | . . . Terrain Rammed . | . . . Walls Destroyed . | . . . Machines Disabled . | . . . Actions | -11 -10 -9 --------- Run | Yrd Mat Mat Total 2264 | 161 698 1405 Wait 154 | . 37 117 Move 1961 | 147 625 1189 Hop . | . . . Pick Up 20 | 6 7 7 Fast Attach 12 | 5 3 4 Attach 4 | 1 . 3 Detach . | . . . Swap 17 | . 2 15 Drop 19 | . 6 13 Fire 69 | 2 18 49 Melee . | . . . Ram 8 | . . 8 Kick . | . . . Crush . | . . . Escape Stasis . | . . . Rewire . | . . . Trap . | . . . Miscellaneous . | . . . Route ------- -11/Scrapyard -10/Materials (discovered 3 exits: *Mat x2 / [*Min]) -9/Materials (discovered 1 exit: [*Min]) History --------- Turn | Location | Event 2 | -11/Scrapyard | Met Revision 17 108 | -11/Scrapyard | Discovered new exit (range 8) 133 | -11/Scrapyard | Entered Materials 308 | -10/Materials | Build established: Mutant 361 | -10/Materials | Discovered new exit (range 10) 471 | -10/Materials | Discovered new exit (range 5) 655 | -10/Materials | Repaired Wheel 705 | -10/Materials | Discovered new exit (range 16) 739 | -10/Materials | Entered another Materials area 739 | -9/Materials | Evolved 2 slots: Propulsion x1, Utility x1 1302 | -9/Materials | Discovered new exit (range 7) 1973 | -9/Materials | Self-destructed Last Messages --------------- 01838_ Acquired 16 matter. 01839_ G-34 Mercenary destroyed. 01840_ Acquired 8 matter. 01841_ K-01 Serf cleans the Fusion Modulator. 01843_ K-01 Serf collects debris. 01847_ Slammed into K-01 Serf. 01848_ Slammed into U-05 Engineer. 01848_ Destabilizing: System corrupted (+2). 01848_ K-01 Serf collects debris. 01851_ Acquired 6 matter. 01853_ Acquired 4 matter. 01856_ K-01 Serf collects debris. 01866_ System corrupted: Substantial component data lost. 01883_ System corrupted: Matter fused (-9). 01917_ System corrupted: Component data lost. 01936_ ALERT: Hostiles spotted, dispatching reinforcements to Terminal M012. 01952_ W-16 Scout sends out distress signal. Map ----- +----------------------------------------------------+ | # = #???????????????????????????????????????? | | # ! #???????????????????????????????????????? | | / # [ #???????????????????????????????????????? | | # #???????????????????????????????????????? | | # [ #?????????????????????#+#???????????????? | | # = = #????????????????????? ???????????????? | | ####+#####?????????????? ##?? ???????????????? | | #??????????????? ? ??????????????? | | #???????????????# ? #??????????? " | | #????????????? ?# """ #??????????? | | #####+#####?????????? # R" #??????????? | | #[ #??????????? + g """ #??????????? # | | # #????????????# #??????????? # | | # """ """ #????????????# #??????????? # | | # """ """ #????????????# g !g* #??????????? # | | # """ """ #????????????# !*b #?????????## ? | | # #??????????### ** !#?????????# ? | | #= #??????????#"" w #?????????# ?? | | # #??????????#"T #????????? ?? | | ###########??????????#"" #?????????# ??? | | #???????????????????###o #?????????# ??? | | #?????????????????????#a #?????????# #??? | | ########??????######### #######?????????# #??? | | # #??????# ## #?????????####### #??? | | # """ #??????# "" ## #?????????# # #??? | | # """ #??????# """ ## @ u########### # #??? | | # """ #??????# S" ## # # # #??? | | ]# #??????# ==[ ## u Y# """ + # ###? | | # #??????# [!%%[## # """"" # # #? | | #####+#############+### # """"" # + #? | | % % % # """"" # # #? | | % % + """ # # #? | | ^ """ # # # #? | | ############ """ w # # # #? | | #??????????# """ [=#######+##### # #? | | #??????????# = # ## # #? | | #??????????+ g # ######### #? | | #??????????# # #???????# #? | | ####??????????# + #???????? #? | | #?????????????# # #???????? +? | | #?????????????# ########== #???????? #? | | #?????????????# #??????#== #???????? #? | | #?????????????# #??????#!= #???????? #? | | #?????????????# +??????###########???????? #? | | #?????????????# #????????????????????????? ?? | | #?????????????? #?????????????????????????????? | | #???????????????????????????????????????????????? | | #???????????????????????????????????????????????? | | #???????????????????????????????????????????????? | | #???????????????????????????????????????????????? | +----------------------------------------------------+ Best States ------------- Heat Dissipation 35 Energy Generation 12 Energy Capacity 265 Matter Stores 300 Matter Capacity 300 Sight Range 16 Terrain Scan Density 10 ECM Strength 2 Evasion (%) 50 Targeting Accuracy 6 Item Schematics ----------------- Enh. Autogun | -9/Materials | Scanalyzed Robot Schematics ------------------ None Fabricated ------------ Nothing Alien Tech Used ----------------- None Achievements -------------- True Hacker Challenges ------------ None Game ------ Seed AlertNodePerforator Manual? 0 Play Time 00:30:45 Cumulative 15.0 hours Start 2024.11.16 @ 14:45:12 End 2024.11.16 @ 15:22:26 Sessions 3 Manual Loads 0 Difficulty Rogue Special Mode None Game No. 30 Rogue 27 Adventurer 3 Explorer 0 Win Type - Total 0 Types 0/0/0/0/0/0/0/0/0 Lore% 4 Gallery% 16 Achievement% 14 Wizard Run 0 Options --------- Layout 2 ASCII 0 Keyboard 0 Movement Arrows Keybinds 0 Fullscreen 1 Font 24/Terminus Map View 50x44 Zoom Use 0% Tactical HUD 1 Map Filters NONE Filters NONE Steam 1 RUN: ff9bad92-dfaa-42e9-b9e8-b565f7606d91